bitfinex/quotes_BTCUSD_20251215
["timestamp","ask_amount","ask_price","bid_price","bid_amount"]
[1765818205360,0.24320756,86346.0,86345.0,0.11552005]
[1765818206596,0.24420756,86346.0,86345.0,0.11552005]
[1765818206799,0.001,86346.0,86345.0,0.34714898]
[1765818207002,0.0115805,86352.0,86348.0,0.01158104]
[1765818207251,0.23158802,86361.0,86359.0,0.11552005]
[1765818207881,0.01157889,86364.0,86359.0,0.01319243]
[1765818208194,0.24314651,86368.0,86359.0,0.01319243]
[1765818208195,0.24314955,86367.0,86366.0,0.11552005]
[1765818208662,0.23157529,86365.0,86364.0,0.12967005]
[1765818208868,0.24314955,86367.0,86364.0,0.12967005]
[1765818208869,0.24314955,86367.0,86364.0,0.01415]
[1765818209079,0.24313434,86372.0,86371.0,0.11552005]
[1765818210156,0.23155073,86375.0,86371.0,0.02572796]
[1765818210157,0.23155339,86374.0,86371.0,0.02572796]
[1765818210362,0.24313259,86373.0,86372.0,0.11552005]
[1765818210597,0.23157529,86365.0,86364.0,0.13128292]
[1765818210740,0.24314021,86370.0,86369.0,0.11552005]
[1765818211145,0.01157769,86373.0,86369.0,0.11552005]
[1765818211347,0.24311201,86380.0,86379.0,0.11552005]
[1765818211991,0.24311201,86380.0,86378.0,0.01848]
[1765818212370,0.01157635,86383.0,86378.0,0.01848]
[1765818212596,0.01157635,86383.0,86382.0,0.11552005]
[1765818212802,0.24310464,86383.0,86382.0,0.11552005]
[1765818213209,0.01157635,86383.0,86382.0,0.11552005]
[1765818213406,0.01157621,86384.0,86383.0,0.11552005]
[1765818214045,0.01157621,86384.0,86378.0,0.03008595]
[1765818214046,0.23153775,86379.0,86378.0,0.03008595]
[1765818214245,0.23153775,86379.0,86378.0,0.13561292]
[1765818214598,0.23153549,86380.0,86379.0,0.11552005]
[1765818214816,0.23153549,86380.0,86378.0,0.13561292]
[1765818214817,0.23153775,86379.0,86378.0,0.13561292]
[1765818215013,0.01157621,86384.0,86383.0,0.11552005]
[1765818215283,0.24308997,86388.0,86387.0,0.11552005]
[1765818215413,0.01157554,86389.0,86388.0,0.11552005]
[1765818215616,0.23152435,86384.0,86383.0,0.00161287]
[1765818215818,0.23152435,86384.0,86383.0,0.11713292]
[1765818216089,0.23152203,86385.0,86384.0,0.11552005]
[1765818216276,0.01157514,86392.0,86383.0,0.00161287]
[1765818216475,0.23151631,86387.0,86386.0,0.11552005]
[1765818218043,0.01157527,86391.0,86371.0,0.02315592]
[1765818218044,0.01157755,86374.0,86373.0,0.11552005]
[1765818218180,0.01157755,86374.0,86373.0,0.13561292]
[1765818218403,0.24312554,86376.0,86373.0,0.04839287]
[1765818218616,0.24312554,86376.0,86375.0,0.12967005]
[1765818219036,0.01157568,86388.0,86385.0,0.11552005]
[1765818219289,0.24309761,86386.0,86385.0,0.14815005]
[1765818220096,0.23150096,86393.0,86385.0,0.03424287]
[1765818220409,0.01157327,86406.0,86405.0,0.11552005]
[1765818220612,0.01157327,86406.0,86405.0,0.13400005]
[1765818220613,0.02567603,86406.0,86405.0,0.13400005]
[1765818220731,0.01157327,86406.0,86405.0,0.13400005]
[1765818220933,0.01157327,86406.0,86392.0,0.00161287]
[1765818220934,0.07300603,86406.0,86392.0,0.00161287]
[1765818221138,0.23150023,86393.0,86392.0,0.11713292]
[1765818221371,0.23150023,86393.0,86392.0,0.13561292]
[1765818221567,0.23350023,86393.0,86392.0,0.13561292]
[1765818222211,0.23150023,86393.0,86392.0,0.13561292]
[1765818222425,0.23150023,86393.0,86392.0,0.13661292]
[1765818222884,0.23150023,86393.0,86392.0,0.13561292]
[1765818223341,0.23150023,86393.0,86392.0,0.11652005]
[1765818223508,0.23150023,86393.0,86392.0,0.13500005]
[1765818223673,0.23150023,86393.0,86392.0,0.13700005]
[1765818224322,0.23150023,86393.0,86392.0,0.13600005]
[1765818224540,0.23150023,86393.0,86392.0,0.13400005]
[1765818224740,0.23150023,86393.0,86392.0,0.11652005]
[1765818225096,0.23150023,86393.0,86392.0,0.11552005]
[1765818225297,0.23150023,86393.0,86392.0,0.13500005]
[1765818225523,0.35226023,86393.0,86392.0,0.001]
[1765818226465,0.35226023,86393.0,86392.0,0.002]
[1765818226796,0.35226023,86393.0,86392.0,0.001]
[1765818226944,0.35226023,86393.0,86392.0,0.002]
[1765818227148,0.35226023,86393.0,86392.0,0.001]
[1765818227540,0.23154043,86378.0,86377.0,0.11552005]
[1765818227976,0.24310515,86383.0,86377.0,0.01576287]
[1765818227977,0.01157635,86383.0,86377.0,0.01576287]
[1765818228180,0.01157635,86383.0,86382.0,0.00999308]
[1765818228355,0.01157541,86390.0,86387.0,0.00999308]
[1765818228559,0.01157541,86390.0,86389.0,0.11552005]
[1765818228786,0.01157514,86392.0,86391.0,0.11552005]
[1765818228945,0.24307805,86392.0,86391.0,0.11552005]
[1765818229344,0.23150085,86393.0,86392.0,0.00999308]
[1765818229562,0.23150085,86393.0,86392.0,0.02847308]
[1765818230332,0.23149741,86395.0,86394.0,0.11552005]
[1765818230534,0.0115746,86396.0,86395.0,0.11552005]
[1765818230737,0.2430692,86396.0,86395.0,0.11552005]
[1765818232578,0.2907,86409.0,86395.0,0.01576287]
[1765818232783,0.01157273,86410.0,86407.0,0.11552005]
[1765818232992,0.24303023,86409.0,86408.0,0.13400005]
[1765818233139,0.03608339,86416.0,86408.0,0.01848]
[1765818233344,0.24300103,86420.0,86419.0,0.11552005]
[1765818233915,0.08903638,86420.0,86419.0,0.11552005]
[1765818234839,0.23145737,86409.0,86408.0,0.13561292]
[1765818235635,0.23145737,86409.0,86408.0,0.11713292]
[1765818236632,0.23245737,86409.0,86408.0,0.11713292]
[1765818236833,0.23345737,86409.0,86408.0,0.11713292]
[1765818237438,0.23147612,86402.0,86401.0,0.12967005]
[1765818237816,0.23147612,86402.0,86401.0,0.13396005]
[1765818238666,0.23147612,86402.0,86401.0,0.13496005]
[1765818239304,0.23147612,86402.0,86401.0,0.11752005]
[1765818239980,0.24304575,86404.0,86401.0,0.13167005]
[1765818240214,0.24304575,86404.0,86402.0,0.11552005]
[1765818240427,0.23147344,86403.0,86402.0,0.11552005]
[1765818241044,0.01157286,86409.0,86408.0,0.11552005]
[1765818241287,0.23144242,86415.0,86409.0,0.11552005]
[1765818241501,0.01410276,86427.0,86409.0,0.11552005]
[1765818241502,0.01410276,86427.0,86409.0,0.02991287]
[1765818241710,0.01410276,86427.0,86420.0,0.2429987]
[1765818241711,0.24298895,86424.0,86420.0,0.2429987]
[1765818241931,0.24298895,86424.0,86423.0,0.11552005]
[1765818242141,0.23142255,86422.0,86421.0,0.13396005]
[1765818242364,0.01157032,86428.0,86421.0,0.01844]
[1765818242609,0.0002,86430.0,86429.0,0.00999308]
[1765818242819,0.0002,86430.0,86429.0,0.02575595]
[1765818243246,0.23160113,86430.0,86429.0,0.02575595]
[1765818243449,0.0002,86430.0,86429.0,0.27130976]
[1765818245164,0.0002,86430.0,86429.0,0.27330976]
[1765818245381,7.242e-05,86430.0,86429.0,0.27530976]
[1765818245606,7.242e-05,86430.0,86429.0,0.03404595]
[1765818246036,7.242e-05,86430.0,86429.0,0.06234595]
[1765818246250,7.242e-05,86430.0,86429.0,0.04819595]
[1765818246696,7.242e-05,86430.0,86429.0,0.06234595]
[1765818246699,7.242e-05,86430.0,86429.0,0.08348633]
[1765818246912,7.242e-05,86430.0,86429.0,0.08448633]
[1765818247129,7.242e-05,86430.0,86429.0,0.19814073]
[1765818247342,7.242e-05,86430.0,86429.0,0.19714073]
[1765818247768,7.242e-05,86430.0,86429.0,0.19914073]
[1765818248434,7.242e-05,86430.0,86429.0,0.01460595]
[1765818248668,7.242e-05,86430.0,86429.0,0.03204595]
[1765818248885,7.242e-05,86430.0,86429.0,0.04619595]
[1765818249103,7.242e-05,86430.0,86429.0,0.03243308]
[1765818249314,0.01157099,86423.0,86418.0,0.01157166]
[1765818249522,0.01157072,86425.0,86418.0,0.01157166]
[1765818249523,0.24298662,86425.0,86424.0,0.11552005]
[1765818249731,7.242e-05,86430.0,86429.0,0.11552005]
[1765818250163,7.242e-05,86430.0,86419.0,0.01844]
[1765818250164,0.23142523,86421.0,86419.0,0.13396005]
[1765818250401,0.23142234,86423.0,86422.0,0.11552005]
[1765818250605,0.24299333,86423.0,86422.0,0.11552005]
[1765818251198,0.24297811,86428.0,86423.0,0.11552005]
[1765818251401,0.02567321,86427.0,86426.0,0.11552005]
[1765818251643,0.01156952,86434.0,86429.0,0.01998616]
[1765818251836,0.01156845,86442.0,86429.0,0.05418903]
[1765818252167,0.23135069,86449.0,86446.0,0.11552005]
[1765818252168,0.22182364,86449.0,86446.0,0.11552005]
[1765818252375,0.22182364,86449.0,86441.0,0.24293789]
[1765818252376,0.23133689,86454.0,86453.0,0.11552005]
[1765818253029,0.01156711,86452.0,86446.0,0.01156791]
[1765818253228,0.01156831,86443.0,86442.0,0.11552005]
[1765818253384,0.01156764,86448.0,86442.0,0.11552005]
[1765818253385,0.01156764,86448.0,86442.0,0.01318132]
[1765818253581,0.01356684,86454.0,86453.0,0.00999308]
[1765818253967,0.0256696,86454.0,86453.0,0.00999308]
[1765818254223,0.0115655,86464.0,86458.0,0.0115663]
[1765818254411,0.0115655,86464.0,86460.0,0.00999308]
[1765818254412,0.0115659,86461.0,86460.0,0.00999308]
[1765818254614,0.25698943,86461.0,86460.0,0.00999308]
[1765818254773,0.23133422,86455.0,86454.0,0.13396005]
[1765818255231,0.23133422,86455.0,86442.0,0.00161287]
[1765818255232,0.01156764,86448.0,86442.0,0.00161287]
[1765818255468,0.23136633,86443.0,86442.0,0.11713292]
[1765818255667,0.23136633,86443.0,86442.0,0.13557292]
[1765818256025,0.01156804,86445.0,86442.0,0.03420287]
[1765818256220,0.2429294,86445.0,86444.0,0.11552005]
[1765818257621,0.23141184,86426.0,86425.0,0.00999308]
[1765818257946,0.23141184,86426.0,86422.0,0.01844]
[1765818257947,0.01157045,86427.0,86426.0,0.00999308]
[1765818258147,0.06204321,86427.0,86426.0,0.00999308]
[1765818258374,0.01157166,86418.0,86412.0,0.02572246]
[1765818258670,0.23142884,86420.0,86412.0,0.02572246]
[1765818258671,0.23142872,86420.0,86418.0,0.11552005]
[1765818258983,0.23143058,86419.0,86418.0,0.11552005]
[1765818259189,0.01157005,86430.0,86427.0,0.11552005]
[1765818259397,0.01156885,86439.0,86432.0,0.01156978]
[1765818259598,0.01156911,86437.0,86436.0,0.11552005]
[1765818259803,0.30226911,86437.0,86436.0,0.11552005]
[1765818260426,0.01156871,86440.0,86439.0,0.11552005]
[1765818260628,0.2907,86444.0,86443.0,0.11552005]
[1765818261002,0.2313478,86450.0,86449.0,0.00999308]
[1765818261003,0.01156737,86450.0,86449.0,0.00999308]
[1765818262645,0.24290264,86455.0,86454.0,0.11552005]
[1765818262871,0.01156791,86446.0,86445.0,0.00999308]
[1765818263069,0.01156711,86452.0,86447.0,0.11552005]
[1765818263070,0.01410276,86448.0,86447.0,0.11552005]
[1765818263414,0.01156684,86454.0,86450.0,0.11552005]
[1765818263691,0.01156737,86450.0,86447.0,0.00161287]
[1765818263903,0.23135295,86448.0,86447.0,0.00999308]
[1765818264397,0.28097295,86448.0,86447.0,0.00999308]
[1765818264598,0.28097295,86448.0,86443.0,0.13396005]
[1765818264599,0.23136365,86444.0,86443.0,0.13396005]
[1765818264805,0.26773365,86444.0,86443.0,0.11552005]
[1765818265009,0.26773365,86444.0,86426.0,0.11552005]
[1765818265010,0.24298156,86427.0,86426.0,0.11552005]
[1765818265359,0.01157005,86430.0,86424.0,0.01157085]
[1765818265360,0.2429752,86429.0,86428.0,0.11552005]
[1765818265606,0.01157005,86430.0,86425.0,0.03001072]
[1765818265607,0.01157005,86430.0,86427.0,0.01157045]
[1765818265797,0.01157005,86430.0,86429.0,0.00999308]
[1765818266511,0.01157112,86422.0,86421.0,0.11552005]
[1765818266947,0.25709911,86422.0,86421.0,0.11552005]
[1765818267157,0.24299635,86422.0,86421.0,0.11552005]
[1765818267565,0.36728635,86422.0,86421.0,0.11552005]
[1765818267769,0.23145469,86410.0,86409.0,0.13396005]
[1765818268101,0.23144881,86413.0,86411.0,0.11552005]
[1765818268291,0.24301714,86414.0,86413.0,0.11552005]
[1765818268699,0.01157179,86417.0,86416.0,0.11552005]
[1765818268909,0.02567455,86417.0,86416.0,0.11552005]
[1765818269109,0.01410276,86417.0,86416.0,0.11552005]
[1765818269347,0.01410276,86419.0,86416.0,0.00161287]
[1765818269557,0.23145469,86410.0,86400.0,0.01157407]
[1765818269770,0.26558469,86410.0,86409.0,0.13396005]
[1765818270001,0.01157179,86417.0,86411.0,0.24302321]
[1765818270382,0.24301898,86413.0,86412.0,0.11552005]
[1765818270715,0.01157179,86417.0,86415.0,0.11552005]
[1765818270716,0.24300826,86417.0,86415.0,0.11552005]
[1765818270952,0.01157179,86417.0,86416.0,0.001]
[1765818271099,0.01410276,86417.0,86416.0,0.11652005]
[1765818271293,0.01157152,86419.0,86418.0,0.11552005]
[1765818271985,0.2429983,86421.0,86420.0,0.11552005]
[1765818272399,0.2429983,86421.0,86416.0,0.001]
[1765818272400,0.23143594,86417.0,86416.0,0.001]
[1765818272602,0.2314654,86406.0,86405.0,0.11552005]
[1765818272756,0.2674754,86406.0,86405.0,0.11552005]
[1765818273419,0.3903054,86406.0,86405.0,0.11552005]
[1765818273611,0.23148782,86398.0,86397.0,0.11552005]
[1765818273824,0.28438782,86398.0,86397.0,0.11552005]
[1765818274121,0.23151095,86389.0,86388.0,0.12967005]
[1765818274275,0.23151095,86389.0,86388.0,0.11552005]
[1765818274479,0.24308368,86390.0,86388.0,0.11552005]
[1765818274687,0.24308368,86390.0,86389.0,0.11552005]
[1765818275674,0.24308368,86390.0,86379.0,0.01157688]
[1765818275675,0.01157916,86362.0,86361.0,0.03276]
[1765818275874,0.01157916,86362.0,86346.0,0.01415]
[1765818275875,0.01157956,86359.0,86351.0,0.01844]
[1765818275987,0.01158023,86354.0,86351.0,0.01844]
[1765818276405,0.24319065,86352.0,86349.0,4.349e-05]
[1765818276624,0.23161551,86350.0,86349.0,4.349e-05]
[1765818278451,0.23161551,86350.0,86349.0,0.00104349]
[1765818278818,0.23161505,86351.0,86349.0,0.00104349]
[1765818279015,0.01410276,86350.0,86349.0,0.00204349]
[1765818279673,0.01410276,86350.0,86349.0,0.00104349]
[1765818280054,0.01410276,86350.0,86349.0,4.349e-05]
[1765818280476,0.01410276,86350.0,86349.0,0.00104349]
[1765818280689,0.01410276,86350.0,86349.0,4.349e-05]
[1765818281190,0.01410276,86350.0,86349.0,0.00104349]
[1765818281631,0.01410276,86350.0,86349.0,0.00204349]
[1765818282382,0.06207276,86350.0,86349.0,0.00204349]
[1765818282588,0.01410276,86350.0,86349.0,0.00204349]
[1765818284232,0.06207276,86350.0,86349.0,0.00204349]
[1765818284436,0.13693276,86350.0,86349.0,0.00204349]
[1765818284688,0.42763276,86350.0,86349.0,0.00204349]
[1765818284846,0.41353,86350.0,86349.0,0.00204349]
[1765818287457,0.41353,86350.0,86349.0,0.00104349]
[1765818287645,0.42352132,86350.0,86349.0,0.00104349]
[1765818287853,0.41353,86350.0,86349.0,4.349e-05]
[1765818287992,0.43201,86350.0,86349.0,4.349e-05]
[1765818288191,0.54714268,86350.0,86349.0,4.349e-05]
[1765818288421,0.28448812,86344.0,86343.0,0.00383508]
[1765818288620,0.8539452,86344.0,86343.0,0.00383508]
[1765818288795,0.9288052,86344.0,86343.0,0.00383508]
[1765818289945,0.9298052,86344.0,86343.0,0.00383508]
[1765818290430,0.9318052,86344.0,86343.0,0.00383508]
[1765818290636,0.23169869,86319.0,86318.0,0.0004]
[1765818290862,0.29767869,86319.0,86318.0,0.0004]
[1765818291406,0.37253869,86319.0,86318.0,0.0004]
[1765818291854,0.37253869,86319.0,86318.0,0.0034]
[1765818292270,0.29767869,86319.0,86318.0,0.0034]
[1765818292875,0.29767869,86319.0,86318.0,0.0004]
[1765818293073,0.37253869,86319.0,86318.0,0.0044]
[1765818293279,0.37253869,86319.0,86318.0,0.0014]
[1765818293639,0.37253869,86319.0,86318.0,0.0024]
[1765818294055,0.4253952,86319.0,86318.0,0.0024]
[1765818294704,0.7160952,86319.0,86318.0,0.0024]
[1765818294898,0.7160952,86319.0,86318.0,0.0014]
[1765818295681,0.7160952,86319.0,86318.0,0.0004]
[1765818296104,0.7170952,86319.0,86318.0,0.0004]
[1765818296301,0.7170952,86319.0,86318.0,0.00082912]
[1765818296720,0.7170952,86319.0,86318.0,0.00282912]
[1765818296974,0.7170952,86319.0,86318.0,0.00082912]
[1765818297366,0.7180952,86319.0,86318.0,0.00082912]
[1765818299169,0.7180952,86319.0,86316.0,0.0004]
[1765818299170,0.57443145,86317.0,86316.0,0.0004]
[1765818299418,0.62240145,86317.0,86316.0,0.0004]
[1765818299654,0.69726145,86317.0,86316.0,0.0004]
[1765818300686,0.57443145,86317.0,86316.0,0.0004]
[1765818300959,0.62240145,86317.0,86316.0,0.0004]
[1765818301170,0.62340145,86317.0,86316.0,0.0004]
[1765818301347,0.57543145,86317.0,86316.0,0.0004]
[1765818301515,0.05202739,86317.0,86316.0,0.0004]
[1765818301716,0.28373145,86317.0,86316.0,0.0004]
[1765818302570,0.28373145,86317.0,86316.0,0.05101287]
[1765818302775,0.40087145,86317.0,86316.0,0.00201287]
[1765818302999,0.40087145,86317.0,86316.0,0.0004]
[1765818303200,0.34884406,86317.0,86316.0,0.0004]
[1765818303704,0.34884406,86317.0,86316.0,0.0014]
[1765818303868,0.34884406,86317.0,86316.0,0.0004]
[1765818304041,0.34984406,86317.0,86316.0,0.0004]
[1765818304690,0.64054406,86317.0,86316.0,0.0004]
[1765818306173,0.52340406,86317.0,86316.0,0.0004]
[1765818306397,0.52340406,86317.0,86316.0,0.03147095]
[1765818306512,0.57112406,86317.0,86316.0,0.03147095]
[1765818306716,0.57112406,86317.0,86316.0,0.0004]
[1765818306717,0.52340406,86317.0,86316.0,0.0004]
[1765818306965,0.64054406,86317.0,86316.0,0.0004]
[1765818307574,0.57112406,86317.0,86316.0,0.0004]
[1765818307778,0.52340406,86317.0,86316.0,0.0004]
[1765818308126,0.001,86317.0,86316.0,0.16653292]
[1765818308772,0.42294276,86317.0,86316.0,0.0004]
[1765818308986,0.23172554,86309.0,86308.0,0.0004]
[1765818309188,0.27944554,86309.0,86308.0,0.0004]
[1765818309387,0.23172554,86309.0,86308.0,0.0004]
[1765818309814,0.34886554,86309.0,86308.0,0.0004]
[1765818310531,0.23172554,86309.0,86308.0,0.0004]
[1765818310734,0.27944554,86309.0,86308.0,0.0004]
[1765818310939,0.23172554,86309.0,86308.0,0.0004]
[1765818311137,0.23172554,86309.0,86308.0,0.0014]
[1765818312103,0.28215293,86309.0,86308.0,0.0014]
[1765818312309,0.28215293,86309.0,86308.0,0.04282793]
[1765818312733,0.28215293,86309.0,86308.0,0.0014]
[1765818312734,0.39929293,86309.0,86308.0,0.0014]
[1765818313158,0.32987293,86309.0,86308.0,0.0014]
[1765818313372,0.32987293,86309.0,86308.0,0.04282793]
[1765818313578,0.39929293,86309.0,86308.0,0.04282793]
[1765818313722,0.05042739,86309.0,86308.0,0.15834798]
[1765818313923,0.05042739,86309.0,86308.0,0.39926114]
[1765818314149,0.28215293,86309.0,86308.0,0.22967482]
[1765818314368,0.28215293,86309.0,86308.0,0.01300595]
[1765818315325,0.28215293,86309.0,86308.0,0.07514785]
[1765818315707,0.28215293,86309.0,86308.0,0.06200595]
[1765818315876,0.32987293,86309.0,86308.0,0.00301287]
[1765818316054,0.39929293,86309.0,86308.0,0.06387175]
[1765818316254,0.39929293,86309.0,86308.0,0.0014]
[1765818316632,0.68999293,86309.0,86308.0,0.0014]
[1765818317677,0.57285293,86309.0,86308.0,0.0014]
[1765818317934,0.57285293,86309.0,86308.0,0.06387175]
[1765818318093,0.57285293,86309.0,86308.0,0.0014]
[1765818318290,0.62057293,86309.0,86308.0,0.0014]
[1765818318470,0.57285293,86309.0,86308.0,0.0014]
[1765818318671,0.57285293,86309.0,86308.0,0.11692005]
[1765818319274,0.28215293,86309.0,86308.0,0.11692005]
[1765818319682,0.05042739,86309.0,86308.0,0.11692005]
[1765818319881,0.05042739,86309.0,86308.0,0.16753292]
[1765818320086,0.05042739,86309.0,86308.0,0.39926114]
[1765818320311,0.05042739,86309.0,86308.0,0.46978114]
[1765818320485,0.05042739,86309.0,86308.0,0.48211701]
[1765818320672,0.05042739,86309.0,86308.0,0.16753292]
[1765818320868,0.28215293,86309.0,86308.0,0.16653292]
[1765818321164,0.05042739,86309.0,86308.0,0.16853292]
[1765818321315,0.05042739,86309.0,86308.0,0.35126114]
[1765818321518,0.05042739,86309.0,86308.0,0.39926114]
[1765818321867,0.24326108,86327.0,86326.0,0.11552005]
[1765818322066,0.53396108,86327.0,86326.0,0.11552005]
[1765818322574,0.24324166,86334.0,86330.0,0.01158345]
[1765818322777,0.24324166,86334.0,86333.0,0.11552005]
[1765818322991,0.24324166,86334.0,86333.0,0.28227136]
[1765818322992,0.02501528,86334.0,86333.0,0.28227136]
[1765818323195,0.02501528,86334.0,86333.0,0.47989446]
[1765818323312,0.01158158,86344.0,86333.0,0.47989446]
[1765818323313,0.0312691,86343.0,86341.0,0.23163875]
[1765818323522,0.03485,86351.0,86341.0,0.36035456]
[1765818323523,0.02501103,86342.0,86341.0,0.36035456]
[1765818323728,0.02501103,86342.0,86341.0,0.11713292]
[1765818323933,0.01158117,86347.0,86342.0,0.24321777]
[1765818323934,0.02501103,86346.0,86342.0,0.24321777]
[1765818324135,0.0312691,86353.0,86351.0,0.23161283]
[1765818324563,0.01158131,86346.0,86343.0,0.01848]
[1765818324777,0.01158023,86354.0,86347.0,0.12710122]
[1765818324979,0.24319147,86352.0,86350.0,0.11552005]
[1765818325094,0.0115801,86355.0,86354.0,0.11552005]
[1765818325095,0.23160249,86355.0,86354.0,0.11552005]
[1765818325300,0.23160249,86355.0,86354.0,0.16452005]
[1765818325497,0.23160249,86355.0,86354.0,0.11552005]
[1765818326801,0.23260249,86355.0,86354.0,0.11552005]
[1765818328305,0.23260278,86355.0,86353.0,0.03002]
[1765818328503,0.23360278,86355.0,86354.0,0.16452005]
[1765818328715,0.23360278,86355.0,86354.0,0.23665292]
[1765818328716,0.002,86355.0,86354.0,0.23665292]
[1765818328893,0.002,86355.0,86354.0,0.25981339]
[1765818329092,0.001,86355.0,86354.0,0.23665292]
[1765818329298,0.002,86355.0,86354.0,0.23665292]
[1765818329694,0.01157983,86357.0,86354.0,0.00161287]
[1765818329923,0.24317791,86357.0,86356.0,0.11552005]
[1765818331344,0.01157863,86366.0,86361.0,0.0115793]
[1765818331554,0.01157863,86366.0,86365.0,0.11552005]
[1765818332183,0.30227836,86368.0,86367.0,0.11552005]
[1765818332839,0.01157836,86368.0,86367.0,0.11552005]
[1765818333711,0.2431456,86368.0,86367.0,0.11552005]
[1765818333943,0.2431456,86368.0,86367.0,0.16514005]
[1765818334165,0.2431456,86368.0,86367.0,0.11552005]
[1765818334166,0.2441456,86368.0,86367.0,0.11552005]
[1765818334381,0.23158523,86362.0,86361.0,0.00999308]
[1765818334593,0.24316069,86363.0,86362.0,0.00999308]
[1765818334793,0.24316069,86363.0,86362.0,0.05961308]
[1765818335003,0.23157606,86365.0,86364.0,0.00999308]
[1765818335443,0.23157606,86365.0,86364.0,0.13027308]
[1765818335651,0.01157863,86366.0,86364.0,0.13027308]
[1765818335865,0.01157863,86366.0,86364.0,0.11552005]
[1765818335866,0.05042739,86365.0,86364.0,0.11552005]
[1765818336088,0.05042739,86365.0,86362.0,0.00161287]
[1765818336089,0.23157797,86364.0,86362.0,0.001]
[1765818336319,0.01158037,86353.0,86348.0,0.01848]
[1765818336525,0.23159707,86357.0,86354.0,0.26162404]
[1765818336725,0.23159707,86357.0,86356.0,0.11552005]
[1765818336902,0.01157956,86359.0,86358.0,0.11552005]
[1765818337109,0.24317094,86359.0,86358.0,0.16514005]
[1765818337512,0.24317094,86359.0,86358.0,0.16675292]
[1765818337720,0.05042739,86365.0,86364.0,0.34709802]
[1765818338016,0.0346,86383.0,86364.0,0.34709802]
[1765818338017,0.05042739,86380.0,86370.0,0.34708193]
[1765818338164,0.23155512,86373.0,86370.0,0.4167948]
[1765818338540,0.26263015,86371.0,86370.0,0.02009287]
[1765818338667,0.26263015,86371.0,86370.0,0.11553215]
[1765818338870,0.03107095,86371.0,86370.0,0.11553215]
[1765818339071,0.03107095,86371.0,86370.0,0.46737403]
[1765818339459,0.03107095,86371.0,86370.0,0.4689869]
[1765818340087,0.03107095,86371.0,86370.0,0.3983269]
[1765818340295,0.03107095,86371.0,86370.0,0.4689869]
[1765818340703,0.03107095,86371.0,86370.0,0.3487069]
[1765818341535,0.03107095,86371.0,86370.0,0.16676502]
[1765818341749,0.26263015,86371.0,86370.0,0.11914502]
[1765818341952,0.03107095,86371.0,86370.0,0.16876502]
[1765818342154,0.03107095,86371.0,86370.0,0.11914502]
[1765818342372,0.26263015,86371.0,86370.0,0.11753215]
[1765818342573,0.03107095,86371.0,86370.0,0.16815215]
[1765818342806,0.03107095,86371.0,86370.0,0.4719869]
[1765818343427,0.03107095,86371.0,86370.0,0.52200529]
[1765818343631,9.5e-07,86371.0,86370.0,0.52200529]
[1765818344264,9.5e-07,86371.0,86370.0,0.52100529]
[1765818344471,9.5e-07,86371.0,86370.0,0.51900529]
[1765818344879,9.5e-07,86371.0,86370.0,0.52200529]
[1765818345087,9.5e-07,86371.0,86370.0,0.63765969]
[1765818345505,9.5e-07,86371.0,86370.0,0.92835969]
[1765818345713,9.5e-07,86371.0,86370.0,0.93135969]
[1765818347942,9.5e-07,86371.0,86370.0,0.94979969]
[1765818350638,9.5e-07,86371.0,86370.0,0.93135969]
[1765818350840,9.5e-07,86371.0,86370.0,0.94979969]
[1765818353422,9.5e-07,86371.0,86370.0,0.83414529]
[1765818357361,9.5e-07,86371.0,86370.0,0.54344529]
[1765818357698,9.5e-07,86371.0,86370.0,0.4934269]
[1765818358727,9.5e-07,86371.0,86370.0,0.17276502]
[1765818358922,0.23156015,86371.0,86370.0,0.12153215]
[1765818359673,0.23156015,86371.0,86370.0,0.11853215]
[1765818359886,0.29580015,86371.0,86370.0,0.003]
[1765818360102,0.65938015,86371.0,86370.0,0.004]
[1765818360303,0.65938015,86371.0,86370.0,0.001]
[1765818360745,0.48273505,86371.0,86370.0,0.003]
[1765818361162,0.48273505,86371.0,86370.0,0.001]
[1765818361163,0.53316244,86371.0,86370.0,0.001]
[1765818361376,0.53516244,86371.0,86370.0,0.001]
[1765818362287,0.53516244,86371.0,86357.0,0.00999308]
[1765818362288,0.23159406,86358.0,86357.0,0.00999308]
[1765818363682,0.23159406,86358.0,86357.0,0.01099308]
[1765818363903,0.28080406,86358.0,86357.0,0.01099308]
[1765818364142,0.64069406,86358.0,86357.0,0.001]
[1765818364391,0.23165575,86335.0,86334.0,0.06325308]
[1765818364570,0.23165575,86335.0,86334.0,0.02843308]
[1765818364780,0.23165575,86335.0,86334.0,0.00999308]
[1765818365543,0.04335251,86337.0,86334.0,0.00999308]
[1765818365544,0.01158251,86337.0,86336.0,0.11553215]
[1765818365758,0.25733795,86337.0,86336.0,0.11553215]
[1765818365987,0.25733795,86337.0,86326.0,0.13397215]
[1765818365988,0.23167722,86327.0,86326.0,0.13397215]
[1765818366681,0.23167722,86327.0,86326.0,0.11553215]
[1765818366682,0.28088722,86327.0,86326.0,0.11553215]
[1765818366905,0.0115848,86320.0,86315.0,0.12711762]
[1765818367121,0.24327701,86322.0,86321.0,0.11553215]
[1765818367364,0.23170675,86316.0,86315.0,0.00161287]
[1765818367609,0.01158453,86322.0,86321.0,0.04546]
[1765818367812,0.02568729,86322.0,86321.0,0.16099215]
[1765818368005,0.02568729,86322.0,86321.0,0.11553215]
[1765818368476,0.01410276,86322.0,86321.0,0.11553215]
[1765818368677,0.01158386,86327.0,86323.0,0.11553215]
[1765818368678,0.01158426,86324.0,86323.0,0.11553215]
[1765818368970,0.01158426,86324.0,86315.0,0.00261287]
[1765818368971,0.243288,86318.0,86315.0,0.00261287]
[1765818369472,0.01158506,86318.0,86315.0,0.24490629]
[1765818369750,0.24328694,86318.0,86316.0,0.11553215]
[1765818370490,0.24327879,86321.0,86317.0,0.23170406]
[1765818370737,0.24328542,86319.0,86318.0,0.11553215]
[1765818370994,0.01158466,86321.0,86318.0,0.11553215]
[1765818371265,0.46324759,86347.0,86318.0,0.11553215]
[1765818371266,0.01158332,86331.0,86330.0,0.11553215]
[1765818371762,0.01158332,86331.0,86328.0,0.03474]
[1765818371979,0.01158251,86337.0,86336.0,0.11553215]
[1765818372211,0.2712438,86337.0,86336.0,0.11553215]
[1765818372431,0.23166649,86331.0,86330.0,0.11714502]
[1765818372929,0.23170098,86319.0,86315.0,0.01158547]
[1765818373095,0.01158359,86329.0,86326.0,0.11553215]
[1765818373294,0.01158386,86327.0,86326.0,0.11553215]
[1765818373855,0.02568662,86327.0,86326.0,0.11553215]
[1765818374193,0.24325263,86330.0,86326.0,0.12711614]
[1765818374511,0.08600931,86380.0,86330.0,0.04546]
[1765818374695,0.01158117,86347.0,86344.0,0.01158158]
[1765818374913,0.38421814,86364.0,86355.0,0.23160131]
[1765818374914,0.03685,86364.0,86355.0,0.23160131]
[1765818375106,0.24317376,86358.0,86357.0,0.11553215]
[1765818375454,0.24316999,86360.0,86351.0,0.03474]
[1765818375455,0.07536769,86359.0,86358.0,0.11553215]
[1765818375671,0.30695939,86359.0,86358.0,0.11553215]
[1765818376089,0.30895939,86359.0,86358.0,0.11553215]
[1765818376497,0.24320154,86349.0,86345.0,0.01158144]